[Event "Titled Tuesday Blitz April 26 Early 2022"]
[White "Guliev, Logman"]
[Black "Oganian, Miran"]
[WhiteFideId "13400061"]
[BlackFideId "4122488"]
[WhiteElo "2128"]
[BlackElo "2357"]
[Result "0-1"]
[Round "05"]
[TimeControl "180+1"]
[Date "2022.04.26"]
[WhiteClock "0:01:44"]
[BlackClock "0:03:01"]

1. e4 {[%clk 0:03:00]}  e6 {[%clk 0:02:59]} 2. d4 {[%clk 0:03:00]}  d5 {[%clk 0:02:59]} 3. Nd2 {[%clk 0:03:00]}  Nf6 {[%clk 0:02:57]} 4. e5 {[%clk 0:03:00]}  Nfd7 {[%clk 0:02:57]} 5. Bd3 {[%clk 0:03:00]}  c5 {[%clk 0:02:57]} 6. c3 {[%clk 0:03:01]}  Nc6 {[%clk 0:02:58]} 7. Ne2 {[%clk 0:03:01]}  cxd4 {[%clk 0:02:59]} 8. cxd4 {[%clk 0:03:01]}  f6 {[%clk 0:03:00]} 9. exf6 {[%clk 0:03:01]}  Qxf6 {[%clk 0:03:00]} 10. Nf3 {[%clk 0:02:59]}  h6 {[%clk 0:03:01]} 11. O-O {[%clk 0:02:58]}  Bd6 {[%clk 0:03:02]} 12. Ng3 {[%clk 0:02:56]}  O-O {[%clk 0:03:03]} 13. Be3 {[%clk 0:02:53]}  Rf7 {[%clk 0:03:03]} 14. Rc1 {[%clk 0:02:51]}  Nf8 {[%clk 0:03:03]} 15. a3 {[%clk 0:02:51]}  Bd7 {[%clk 0:03:03]} 16. b4 {[%clk 0:02:50]}  a6 {[%clk 0:03:03]} 17. Re1 {[%clk 0:02:41]}  Be8 {[%clk 0:03:03]} 18. Nh5 {[%clk 0:02:24]}  Qd8 {[%clk 0:03:02]} 19. Bb1 {[%clk 0:02:13]}  Rc8 {[%clk 0:03:02]} 20. Ng3 {[%clk 0:02:04]}  Rfc7 {[%clk 0:03:02]} 21. Qd2 {[%clk 0:02:02]}  Qf6 {[%clk 0:03:01]} 22. Nh5 {[%clk 0:01:44]}  Bxh5 {[%clk 0:03:01]} 0-1


[Site "https://www.chess.com"]

[Event "Titled Tuesday Blitz April 26 Early 2022"]
[White "Gunduz, Umut Erdem"]
[Black "Manukian, Artak"]
[WhiteFideId "6381383"]
[BlackFideId "13301373"]
[WhiteElo "2099"]
[BlackElo "2344"]
[Result "1/2-1/2"]
[Round "05"]
[TimeControl "180+1"]
[Date "2022.04.26"]
[WhiteClock "0:00:45"]
[BlackClock "0:00:13"]

1. e4 {[%clk 0:02:53]}  c6 {[%clk 0:02:58]} 2. d4 {[%clk 0:02:53]}  d5 {[%clk 0:02:58]} 3. exd5 {[%clk 0:02:52]}  cxd5 {[%clk 0:02:56]} 4. c4 {[%clk 0:02:50]}  Nf6 {[%clk 0:02:56]} 5. Nc3 {[%clk 0:02:50]}  g6 {[%clk 0:02:56]} 6. Bg5 {[%clk 0:02:49]}  Bg7 {[%clk 0:02:54]} 7. Bxf6 {[%clk 0:02:48]}  exf6 {[%clk 0:02:54]} 8. Nxd5 {[%clk 0:02:46]}  O-O {[%clk 0:02:54]} 9. Nf3 {[%clk 0:02:45]}  Nc6 {[%clk 0:02:44]} 10. Be2 {[%clk 0:02:44]}  Bg4 {[%clk 0:02:36]} 11. O-O {[%clk 0:02:42]}  f5 {[%clk 0:02:35]} 12. Ne5 {[%clk 0:02:39]}  Bxe2 {[%clk 0:02:28]} 13. Qxe2 {[%clk 0:02:26]}  Nxd4 {[%clk 0:02:26]} 14. Qe3 {[%clk 0:02:02]}  Nc2 {[%clk 0:02:21]} 15. Qc5 {[%clk 0:01:58]}  Nxa1 {[%clk 0:01:56]} 16. Rxa1 {[%clk 0:01:57]}  Bxe5 {[%clk 0:01:54]} 17. Ne7+ {[%clk 0:01:57]}  Kg7 {[%clk 0:01:50]} 18. Qxe5+ {[%clk 0:01:58]}  f6 {[%clk 0:01:50]} 19. Qc5 {[%clk 0:01:54]}  b6 {[%clk 0:01:33]} 20. Qb4 {[%clk 0:01:45]}  a5 {[%clk 0:01:18]} 21. Qa3 {[%clk 0:01:45]}  Qc7 {[%clk 0:01:15]} 22. b3 {[%clk 0:01:44]}  Qc5 {[%clk 0:01:09]} 23. Qxc5 {[%clk 0:01:41]}  bxc5 {[%clk 0:01:10]} 24. Nd5 {[%clk 0:01:41]}  a4 {[%clk 0:00:50]} 25. Nb6 {[%clk 0:01:40]}  axb3 {[%clk 0:00:50]} 26. Nxa8 {[%clk 0:01:39]}  Rxa8 {[%clk 0:00:51]} 27. Kf1 {[%clk 0:01:36]}  bxa2 {[%clk 0:00:32]} 28. Ke2 {[%clk 0:01:35]}  f4 {[%clk 0:00:30]} 29. Kf3 {[%clk 0:01:31]}  g5 {[%clk 0:00:30]} 30. Ke4 {[%clk 0:01:32]}  Kg6 {[%clk 0:00:20]} 31. Kd5 {[%clk 0:01:31]}  Ra5 {[%clk 0:00:19]} 32. Kc6 {[%clk 0:01:30]}  Kf5 {[%clk 0:00:19]} 33. Kb6 {[%clk 0:01:30]}  Ra8 {[%clk 0:00:18]} 34. Kxc5 {[%clk 0:01:31]}  Ke4 {[%clk 0:00:19]} 35. Kb6 {[%clk 0:01:27]}  Kd3 {[%clk 0:00:18]} 36. c5 {[%clk 0:01:27]}  Kc2 {[%clk 0:00:16]} 37. Kb7 {[%clk 0:01:26]}  Ra4 {[%clk 0:00:15]} 38. c6 {[%clk 0:01:25]}  Kb2 {[%clk 0:00:14]} 39. Rxa2+ {[%clk 0:01:19]}  Kxa2 {[%clk 0:00:15]} 40. c7 {[%clk 0:01:20]}  Rc4 {[%clk 0:00:14]} 41. c8=Q {[%clk 0:01:20]}  Rxc8 {[%clk 0:00:15]} 42. Kxc8 {[%clk 0:01:21]}  Kb2 {[%clk 0:00:15]} 43. Kd7 {[%clk 0:01:22]}  Kc2 {[%clk 0:00:16]} 44. Ke6 {[%clk 0:01:23]}  Kd2 {[%clk 0:00:13]} 45. Kxf6 {[%clk 0:01:23]}  Ke2 {[%clk 0:00:13]} 46. Kxg5 {[%clk 0:01:23]}  Kxf2 {[%clk 0:00:14]} 47. Kxf4 {[%clk 0:00:49]}  Kxg2 {[%clk 0:00:13]} 48. Kg5 {[%clk 0:00:46]}  Kxh2 {[%clk 0:00:13]} 49. Kh6 {[%clk 0:00:46]}  Kg3 {[%clk 0:00:13]} 50. Kxh7 {[%clk 0:00:45]} 1/2-1/2


[Site "https://www.chess.com"]

[Event "Titled Tuesday Blitz April 26 Early 2022"]
[White "Guseva, Marina"]
[Black "Hartikainen, Jarmo"]
[WhiteFideId "4149351"]
[BlackFideId "503134"]
[WhiteElo "2071"]
[BlackElo "2117"]
[Result "1-0"]
[Round "05"]
[TimeControl "180+1"]
[Date "2022.04.26"]
[WhiteClock "0:00:08"]
[BlackClock "0:00:04"]

1. d4 {[%clk 0:03:00]}  Nf6 {[%clk 0:02:58]} 2. Nf3 {[%clk 0:03:00]}  g6 {[%clk 0:02:58]} 3. Bf4 {[%clk 0:02:55]}  d6 {[%clk 0:02:56]} 4. e3 {[%clk 0:02:55]}  Bg7 {[%clk 0:02:55]} 5. Be2 {[%clk 0:02:54]}  O-O {[%clk 0:02:55]} 6. O-O {[%clk 0:02:54]}  Nbd7 {[%clk 0:02:56]} 7. h3 {[%clk 0:02:53]}  Re8 {[%clk 0:02:55]} 8. Bh2 {[%clk 0:02:53]}  c6 {[%clk 0:02:55]} 9. a4 {[%clk 0:02:41]}  a5 {[%clk 0:02:54]} 10. Nbd2 {[%clk 0:02:37]}  b6 {[%clk 0:02:33]} 11. Nc4 {[%clk 0:02:35]}  Bb7 {[%clk 0:02:31]} 12. c3 {[%clk 0:02:31]}  Ne4 {[%clk 0:02:12]} 13. Qc2 {[%clk 0:02:20]}  Ndf6 {[%clk 0:02:09]} 14. Ne1 {[%clk 0:02:10]}  d5 {[%clk 0:01:55]} 15. Ne5 {[%clk 0:02:07]}  Nd7 {[%clk 0:01:54]} 16. N1d3 {[%clk 0:02:03]}  Nxe5 {[%clk 0:01:49]} 17. Nxe5 {[%clk 0:02:01]}  c5 {[%clk 0:01:36]} 18. Bb5 {[%clk 0:01:55]}  Rf8 {[%clk 0:01:09]} 19. Nd7 {[%clk 0:01:52]}  Re8 {[%clk 0:01:08]} 20. Ne5 {[%clk 0:01:11]}  Rf8 {[%clk 0:01:06]} 21. Rfd1 {[%clk 0:01:10]}  Nd6 {[%clk 0:01:02]} 22. dxc5 {[%clk 0:00:56]}  Nxb5 {[%clk 0:00:53]} 23. axb5 {[%clk 0:00:49]}  bxc5 {[%clk 0:00:53]} 24. Nc6 {[%clk 0:00:47]}  Bxc6 {[%clk 0:00:50]} 25. bxc6 {[%clk 0:00:46]}  e5 {[%clk 0:00:46]} 26. e4 {[%clk 0:00:37]}  d4 {[%clk 0:00:45]} 27. cxd4 {[%clk 0:00:37]}  cxd4 {[%clk 0:00:45]} 28. c7 {[%clk 0:00:34]}  Qd6 {[%clk 0:00:36]} 29. Rac1 {[%clk 0:00:31]}  Rfc8 {[%clk 0:00:36]} 30. Qc6 {[%clk 0:00:25]}  Qxc6 {[%clk 0:00:34]} 31. Rxc6 {[%clk 0:00:24]}  Ra7 {[%clk 0:00:33]} 32. Rdc1 {[%clk 0:00:23]}  a4 {[%clk 0:00:31]} 33. f4 {[%clk 0:00:22]}  f6 {[%clk 0:00:29]} 34. fxe5 {[%clk 0:00:21]}  fxe5 {[%clk 0:00:30]} 35. Bg3 {[%clk 0:00:20]}  g5 {[%clk 0:00:26]} 36. Be1 {[%clk 0:00:19]}  Bf8 {[%clk 0:00:22]} 37. Bd2 {[%clk 0:00:18]}  h6 {[%clk 0:00:20]} 38. Kf1 {[%clk 0:00:17]}  a3 {[%clk 0:00:20]} 39. bxa3 {[%clk 0:00:17]}  Rxa3 {[%clk 0:00:19]} 40. Ke2 {[%clk 0:00:17]}  Ra2 {[%clk 0:00:19]} 41. R1c4 {[%clk 0:00:15]}  Ra7 {[%clk 0:00:17]} 42. Kd3 {[%clk 0:00:13]}  Be7 {[%clk 0:00:16]} 43. Ke2 {[%clk 0:00:12]}  Kf7 {[%clk 0:00:17]} 44. Kf3 {[%clk 0:00:12]}  Ke8 {[%clk 0:00:17]} 45. Kg4 {[%clk 0:00:11]}  Kd7 {[%clk 0:00:17]} 46. Kh5 {[%clk 0:00:11]}  Rcxc7 {[%clk 0:00:18]} 47. Rxc7+ {[%clk 0:00:11]}  Rxc7 {[%clk 0:00:18]} 48. Rxc7+ {[%clk 0:00:11]}  Kxc7 {[%clk 0:00:18]} 49. Kxh6 {[%clk 0:00:12]}  d3 {[%clk 0:00:19]} 50. Kg6 {[%clk 0:00:12]}  Kd6 {[%clk 0:00:19]} 51. Kf5 {[%clk 0:00:12]}  Bd8 {[%clk 0:00:18]} 52. g3 {[%clk 0:00:10]}  Be7 {[%clk 0:00:19]} 53. Kg4 {[%clk 0:00:09]}  Ke6 {[%clk 0:00:18]} 54. h4 {[%clk 0:00:09]}  gxh4 {[%clk 0:00:17]} 55. gxh4 {[%clk 0:00:10]}  Kf7 {[%clk 0:00:17]} 56. h5 {[%clk 0:00:09]}  Kg7 {[%clk 0:00:17]} 57. Kf5 {[%clk 0:00:09]}  Bd6 {[%clk 0:00:15]} 58. Ke6 {[%clk 0:00:09]}  Bb8 {[%clk 0:00:13]} 59. Kd5 {[%clk 0:00:09]}  Kf6 {[%clk 0:00:13]} 60. Kc4 {[%clk 0:00:09]}  Bc7 {[%clk 0:00:12]} 61. Kxd3 {[%clk 0:00:09]}  Bd6 {[%clk 0:00:12]} 62. Kc4 {[%clk 0:00:10]}  Bf8 {[%clk 0:00:12]} 63. Kd5 {[%clk 0:00:10]}  Bg7 {[%clk 0:00:13]} 64. Bc3 {[%clk 0:00:10]}  Kg5 {[%clk 0:00:12]} 65. Bxe5 {[%clk 0:00:10]}  Bh6 {[%clk 0:00:10]} 66. Bd4 {[%clk 0:00:10]}  Kxh5 {[%clk 0:00:11]} 67. e5 {[%clk 0:00:10]}  Bf4 {[%clk 0:00:09]} 68. e6 {[%clk 0:00:10]}  Bg5 {[%clk 0:00:10]} 69. Kd6 {[%clk 0:00:10]}  Kg6 {[%clk 0:00:10]} 70. Kd7 {[%clk 0:00:10]}  Kf5 {[%clk 0:00:10]} 71. Bc5 {[%clk 0:00:10]}  Bf6 {[%clk 0:00:09]} 72. Be7 {[%clk 0:00:10]}  Bc3 {[%clk 0:00:08]} 73. Bh4 {[%clk 0:00:09]}  Bb4 {[%clk 0:00:08]} 74. Bg3 {[%clk 0:00:07]}  Kf6 {[%clk 0:00:04]} 75. Bd6 {[%clk 0:00:07]}  Bxd6 {[%clk 0:00:01]} 76. Kxd6 {[%clk 0:00:07]}  Kf5 {[%clk 0:00:01]} 77. Kd7 {[%clk 0:00:07]}  Ke4 {[%clk 0:00:02]} 78. e7 {[%clk 0:00:07]}  Kd5 {[%clk 0:00:03]} 79. e8=Q {[%clk 0:00:07]}  Kc5 {[%clk 0:00:04]} 80. Qg6 {[%clk 0:00:07]}  Kd5 {[%clk 0:00:04]} 81. Qg4 {[%clk 0:00:07]}  Ke5 {[%clk 0:00:04]} 82. Qf3 {[%clk 0:00:07]}  Kd4 {[%clk 0:00:03]} 83. Ke6 {[%clk 0:00:07]}  Kc5 {[%clk 0:00:03]} 84. Qd3 {[%clk 0:00:07]}  Kc6 {[%clk 0:00:03]} 85. Qc4+ {[%clk 0:00:07]}  Kb6 {[%clk 0:00:03]} 86. Kd7 {[%clk 0:00:07]}  Ka5 {[%clk 0:00:03]} 87. Qb3 {[%clk 0:00:07]}  Ka6 {[%clk 0:00:03]} 88. Kc7 {[%clk 0:00:08]}  Ka5 {[%clk 0:00:03]} 89. Kc6 {[%clk 0:00:08]}  Ka6 {[%clk 0:00:04]} 90. Qb6# {[%clk 0:00:08]} 1-0


[Site "https://www.chess.com"]

[Event "Titled Tuesday Blitz April 26 Early 2022"]
[White "Harikrishna, Pentala"]
[Black "Martic, Ivan"]
[WhiteFideId "5007003"]
[BlackFideId "929301"]
[WhiteElo "2574"]
[BlackElo "2317"]
[Result "1-0"]
[Round "05"]
[TimeControl "180+1"]
[Date "2022.04.26"]
[WhiteClock "0:01:46"]
[BlackClock "0:01:33"]

1. d4 {[%clk 0:03:00]}  Nf6 {[%clk 0:02:56]} 2. c4 {[%clk 0:03:01]}  g6 {[%clk 0:02:57]} 3. Nc3 {[%clk 0:03:00]}  Bg7 {[%clk 0:02:57]} 4. e4 {[%clk 0:03:00]}  d6 {[%clk 0:02:57]} 5. Nf3 {[%clk 0:03:00]}  O-O {[%clk 0:02:57]} 6. Be2 {[%clk 0:03:00]}  e5 {[%clk 0:02:56]} 7. Be3 {[%clk 0:03:00]}  c6 {[%clk 0:02:54]} 8. O-O {[%clk 0:02:59]}  Nbd7 {[%clk 0:02:42]} 9. d5 {[%clk 0:02:55]}  Ng4 {[%clk 0:02:35]} 10. Bg5 {[%clk 0:02:48]}  f6 {[%clk 0:02:35]} 11. dxc6 {[%clk 0:02:46]}  bxc6 {[%clk 0:02:19]} 12. Qxd6 {[%clk 0:02:38]}  Nxf2 {[%clk 0:02:13]} 13. Be3 {[%clk 0:02:22]}  Ng4 {[%clk 0:02:08]} 14. Qe6+ {[%clk 0:02:21]}  Rf7 {[%clk 0:02:07]} 15. Qxg4 {[%clk 0:02:21]}  f5 {[%clk 0:01:55]} 16. exf5 {[%clk 0:02:15]}  gxf5 {[%clk 0:01:56]} 17. Qh4 {[%clk 0:02:16]}  Bf6 {[%clk 0:01:54]} 18. Qh5 {[%clk 0:02:11]}  f4 {[%clk 0:01:49]} 19. Bf2 {[%clk 0:02:02]}  Nf8 {[%clk 0:01:44]} 20. Ne4 {[%clk 0:01:59]}  Ng6 {[%clk 0:01:37]} 21. Rad1 {[%clk 0:01:55]}  Qe8 {[%clk 0:01:33]} 22. Nd6 {[%clk 0:01:46]} 1-0


[Site "https://www.chess.com"]

[Event "Titled Tuesday Blitz April 26 Early 2022"]
[White "Harshavardhan G B"]
[Black "Skliarov, Viktor"]
[WhiteFideId "25059009"]
[BlackFideId "14106736"]
[WhiteElo "1831"]
[BlackElo "2229"]
[Result "1-0"]
[Round "05"]
[TimeControl "180+1"]
[Date "2022.04.26"]
[WhiteClock "0:01:08"]
[BlackClock "0:00:03"]

1. d4 {[%clk 0:03:00]}  Nf6 {[%clk 0:02:59]} 2. c4 {[%clk 0:02:59]}  e6 {[%clk 0:03:00]} 3. Nc3 {[%clk 0:02:55]}  Bb4 {[%clk 0:03:00]} 4. f3 {[%clk 0:02:53]}  c5 {[%clk 0:02:54]} 5. d5 {[%clk 0:02:52]}  d6 {[%clk 0:02:53]} 6. e4 {[%clk 0:02:49]}  b5 {[%clk 0:02:48]} 7. Ne2 {[%clk 0:02:48]}  O-O {[%clk 0:02:42]} 8. Ng3 {[%clk 0:02:46]}  exd5 {[%clk 0:01:42]} 9. cxd5 {[%clk 0:02:42]}  a6 {[%clk 0:01:39]} 10. Be2 {[%clk 0:02:41]}  Nbd7 {[%clk 0:01:36]} 11. O-O {[%clk 0:02:41]}  Re8 {[%clk 0:01:31]} 12. a4 {[%clk 0:02:37]}  bxa4 {[%clk 0:01:26]} 13. Kh1 {[%clk 0:02:35]}  a3 {[%clk 0:01:21]} 14. Qc2 {[%clk 0:02:30]}  axb2 {[%clk 0:01:19]} 15. Bxb2 {[%clk 0:02:31]}  Ne5 {[%clk 0:00:59]} 16. Nd1 {[%clk 0:02:27]}  a5 {[%clk 0:00:46]} 17. Bb5 {[%clk 0:02:17]}  Bd7 {[%clk 0:00:39]} 18. Bxd7 {[%clk 0:02:11]}  Nfxd7 {[%clk 0:00:31]} 19. Ne3 {[%clk 0:02:09]}  f6 {[%clk 0:00:23]} 20. f4 {[%clk 0:02:06]}  Ng6 {[%clk 0:00:23]} 21. Nc4 {[%clk 0:02:04]}  Nb6 {[%clk 0:00:23]} 22. Ne3 {[%clk 0:02:00]}  a4 {[%clk 0:00:23]} 23. Nef5 {[%clk 0:01:56]}  a3 {[%clk 0:00:23]} 24. Bc1 {[%clk 0:01:55]}  Qd7 {[%clk 0:00:23]} 25. Nh5 {[%clk 0:01:54]}  Qa4 {[%clk 0:00:16]} 26. Qd3 {[%clk 0:01:47]}  Ra7 {[%clk 0:00:16]} 27. Nxd6 {[%clk 0:01:43]}  Rd8 {[%clk 0:00:14]} 28. Nf5 {[%clk 0:01:39]}  c4 {[%clk 0:00:13]} 29. Qg3 {[%clk 0:01:36]}  c3 {[%clk 0:00:11]} 30. Be3 {[%clk 0:01:30]}  Ba5 {[%clk 0:00:09]} 31. e5 {[%clk 0:01:21]}  Qe4 {[%clk 0:00:05]} 32. Nfxg7 {[%clk 0:01:19]}  Nxd5 {[%clk 0:00:02]} 33. Bxa7 {[%clk 0:01:17]}  c2 {[%clk 0:00:01]} 34. Ne6 {[%clk 0:01:13]}  Bd2 {[%clk 0:00:01]} 35. Nxd8 {[%clk 0:01:12]}  c1=Q {[%clk 0:00:01]} 36. Raxc1 {[%clk 0:01:12]}  Bxc1 {[%clk 0:00:02]} 37. Rxc1 {[%clk 0:01:12]}  a2 {[%clk 0:00:03]} 38. Qb3 {[%clk 0:01:09]}  Qb1 {[%clk 0:00:02]} 39. Rxb1 {[%clk 0:01:07]}  axb1=Q+ {[%clk 0:00:03]} 40. Qxb1 {[%clk 0:01:08]} 1-0


[Site "https://www.chess.com"]

[Event "Titled Tuesday Blitz April 26 Early 2022"]
[White "Hasangatin, Ramil"]
[Black "Costachi, Mihnea"]
[WhiteFideId "4122160"]
[BlackFideId "1217518"]
[WhiteElo "2375"]
[BlackElo "2476"]
[Result "1-0"]
[Round "05"]
[TimeControl "180+1"]
[Date "2022.04.26"]
[WhiteClock "0:00:15"]
[BlackClock "0:00:21"]

1. e4 {[%clk 0:02:51]}  e5 {[%clk 0:02:58]} 2. Nf3 {[%clk 0:02:51]}  Nf6 {[%clk 0:02:59]} 3. d3 {[%clk 0:02:50]}  Nc6 {[%clk 0:02:58]} 4. c3 {[%clk 0:02:50]}  d5 {[%clk 0:02:59]} 5. Nbd2 {[%clk 0:02:49]}  Be6 {[%clk 0:02:58]} 6. Be2 {[%clk 0:02:49]}  h6 {[%clk 0:02:58]} 7. b4 {[%clk 0:02:49]}  a6 {[%clk 0:02:58]} 8. a3 {[%clk 0:02:49]}  Qd7 {[%clk 0:02:58]} 9. O-O {[%clk 0:02:49]}  Be7 {[%clk 0:02:58]} 10. Qc2 {[%clk 0:02:49]}  O-O {[%clk 0:02:59]} 11. Bb2 {[%clk 0:02:49]}  Rfd8 {[%clk 0:02:55]} 12. Rfe1 {[%clk 0:02:47]}  b5 {[%clk 0:02:51]} 13. exd5 {[%clk 0:02:42]}  Nxd5 {[%clk 0:02:50]} 14. Bf1 {[%clk 0:02:42]}  Nf4 {[%clk 0:02:47]} 15. Ne4 {[%clk 0:02:12]}  Bg4 {[%clk 0:02:15]} 16. Bc1 {[%clk 0:01:09]}  Bxf3 {[%clk 0:02:07]} 17. gxf3 {[%clk 0:01:09]}  Qf5 {[%clk 0:01:56]} 18. Be3 {[%clk 0:00:58]}  Nh3+ {[%clk 0:01:53]} 19. Kg2 {[%clk 0:00:56]}  Bh4 {[%clk 0:01:43]} 20. Ng3 {[%clk 0:00:52]}  Nf4+ {[%clk 0:01:38]} 21. Bxf4 {[%clk 0:00:51]}  Qxf4 {[%clk 0:01:39]} 22. Re4 {[%clk 0:00:51]}  Qf6 {[%clk 0:01:38]} 23. Rae1 {[%clk 0:00:43]}  Bg5 {[%clk 0:01:37]} 24. Qe2 {[%clk 0:00:29]}  Bf4 {[%clk 0:01:35]} 25. Kh1 {[%clk 0:00:29]}  g6 {[%clk 0:01:34]} 26. Bg2 {[%clk 0:00:27]}  h5 {[%clk 0:01:34]} 27. Qc2 {[%clk 0:00:16]}  a5 {[%clk 0:01:33]} 28. Ne2 {[%clk 0:00:16]}  axb4 {[%clk 0:01:32]} 29. Nxf4 {[%clk 0:00:15]}  exf4 {[%clk 0:01:30]} 30. axb4 {[%clk 0:00:14]}  Kg7 {[%clk 0:01:24]} 31. d4 {[%clk 0:00:14]}  Rd5 {[%clk 0:01:21]} 32. Qd2 {[%clk 0:00:13]}  g5 {[%clk 0:01:19]} 33. h4 {[%clk 0:00:12]}  Rg8 {[%clk 0:01:17]} 34. hxg5 {[%clk 0:00:11]}  Rxg5 {[%clk 0:01:18]} 35. Qxf4 {[%clk 0:00:11]}  Qg6 {[%clk 0:01:14]} 36. Bh3 {[%clk 0:00:11]}  Kh7 {[%clk 0:01:10]} 37. Qh2 {[%clk 0:00:10]}  Nd8 {[%clk 0:01:04]} 38. f4 {[%clk 0:00:10]}  Rd5 {[%clk 0:00:54]} 39. f5 {[%clk 0:00:10]}  Qg5 {[%clk 0:00:55]} 40. Qf4 {[%clk 0:00:10]}  Qxf4 {[%clk 0:00:48]} 41. Rxf4 {[%clk 0:00:11]}  Nc6 {[%clk 0:00:49]} 42. Rfe4 {[%clk 0:00:12]}  Rd6 {[%clk 0:00:45]} 43. Kh2 {[%clk 0:00:12]}  Nb8 {[%clk 0:00:44]} 44. f4 {[%clk 0:00:12]}  Nd7 {[%clk 0:00:44]} 45. Re7 {[%clk 0:00:13]}  Rg7 {[%clk 0:00:44]} 46. Rg1 {[%clk 0:00:12]}  Rxg1 {[%clk 0:00:39]} 47. Kxg1 {[%clk 0:00:13]}  Kg7 {[%clk 0:00:40]} 48. f6+ {[%clk 0:00:13]}  Nxf6 {[%clk 0:00:40]} 49. Rxc7 {[%clk 0:00:14]}  Nd5 {[%clk 0:00:39]} 50. Rc5 {[%clk 0:00:14]}  Nxf4 {[%clk 0:00:39]} 51. Bf1 {[%clk 0:00:14]}  Rg6+ {[%clk 0:00:35]} 52. Kh2 {[%clk 0:00:15]}  h4 {[%clk 0:00:35]} 53. Rxb5 {[%clk 0:00:15]}  Rg3 {[%clk 0:00:33]} 54. Rf5 {[%clk 0:00:16]}  Rf3 {[%clk 0:00:30]} 55. Bc4 {[%clk 0:00:15]}  Rf2+ {[%clk 0:00:30]} 56. Kh1 {[%clk 0:00:16]}  h3 {[%clk 0:00:28]} 57. b5 {[%clk 0:00:15]}  h2 {[%clk 0:00:26]} 58. b6 {[%clk 0:00:14]}  Kg6 {[%clk 0:00:25]} 59. Rxf4 {[%clk 0:00:12]}  Rb2 {[%clk 0:00:18]} 60. Bd3+ {[%clk 0:00:12]}  Kg5 {[%clk 0:00:18]} 61. Rf5+ {[%clk 0:00:12]}  Kg4 {[%clk 0:00:19]} 62. Rb5 {[%clk 0:00:12]}  Rd2 {[%clk 0:00:18]} 63. b7 {[%clk 0:00:12]}  Kh3 {[%clk 0:00:19]} 64. Rh5+ {[%clk 0:00:11]}  Kg4 {[%clk 0:00:18]} 65. b8=Q {[%clk 0:00:10]}  Kxh5 {[%clk 0:00:17]} 66. Qxh2+ {[%clk 0:00:11]}  Rxh2+ {[%clk 0:00:16]} 67. Kxh2 {[%clk 0:00:12]}  Kg4 {[%clk 0:00:17]} 68. Kg2 {[%clk 0:00:12]}  Kf4 {[%clk 0:00:18]} 69. Kf2 {[%clk 0:00:13]}  f5 {[%clk 0:00:18]} 70. Bc2 {[%clk 0:00:14]}  Kg5 {[%clk 0:00:18]} 71. Kf3 {[%clk 0:00:14]}  Kf6 {[%clk 0:00:19]} 72. Bd3 {[%clk 0:00:14]}  Ke6 {[%clk 0:00:20]} 73. Kf4 {[%clk 0:00:15]}  Kd5 {[%clk 0:00:21]} 74. Kxf5 {[%clk 0:00:15]} 1-0


[Site "https://www.chess.com"]

[Event "Titled Tuesday Blitz April 26 Early 2022"]
[White "Haukenfrers, Dale"]
[Black "Matamoros Franco, Carlos S."]
[WhiteFideId "2603780"]
[BlackFideId "3600017"]
[WhiteElo "2050"]
[BlackElo "2554"]
[Result "0-1"]
[Round "05"]
[TimeControl "180+1"]
[Date "2022.04.26"]
[WhiteClock "0:00:29"]
[BlackClock "0:00:19"]

1. f3 {[%clk 0:03:00]}  e5 {[%clk 0:02:55]} 2. c3 {[%clk 0:03:01]}  d5 {[%clk 0:02:55]} 3. e4 {[%clk 0:03:01]}  c6 {[%clk 0:02:53]} 4. Qc2 {[%clk 0:02:56]}  Nf6 {[%clk 0:02:50]} 5. d4 {[%clk 0:02:50]}  Nbd7 {[%clk 0:02:21]} 6. Be3 {[%clk 0:02:46]}  Bd6 {[%clk 0:02:14]} 7. Bd3 {[%clk 0:02:42]}  O-O {[%clk 0:02:07]} 8. Ne2 {[%clk 0:02:41]}  Re8 {[%clk 0:02:06]} 9. O-O {[%clk 0:02:39]}  h6 {[%clk 0:02:04]} 10. Kh1 {[%clk 0:02:35]}  c5 {[%clk 0:02:02]} 11. dxe5 {[%clk 0:02:32]}  Nxe5 {[%clk 0:01:59]} 12. Bb5 {[%clk 0:02:24]}  Bd7 {[%clk 0:01:49]} 13. Bxd7 {[%clk 0:02:22]}  Qxd7 {[%clk 0:01:49]} 14. Nd2 {[%clk 0:02:13]}  dxe4 {[%clk 0:01:42]} 15. Nxe4 {[%clk 0:02:13]}  Nxe4 {[%clk 0:01:42]} 16. Qxe4 {[%clk 0:02:12]}  Ng6 {[%clk 0:01:02]} 17. Qd3 {[%clk 0:02:08]}  Qe6 {[%clk 0:01:00]} 18. Rae1 {[%clk 0:02:01]}  Qxe3 {[%clk 0:00:44]} 19. Qxd6 {[%clk 0:01:59]}  Rad8 {[%clk 0:00:45]} 20. Qc7 {[%clk 0:01:56]}  Rd2 {[%clk 0:00:37]} 21. Qxb7 {[%clk 0:01:43]}  Rxe2 {[%clk 0:00:35]} 22. Rxe2 {[%clk 0:01:31]}  Qxe2 {[%clk 0:00:36]} 23. Rg1 {[%clk 0:01:30]}  Qe7 {[%clk 0:00:34]} 24. Qc6 {[%clk 0:01:25]}  Rd8 {[%clk 0:00:34]} 25. b4 {[%clk 0:01:20]}  cxb4 {[%clk 0:00:33]} 26. cxb4 {[%clk 0:01:17]}  Qxb4 {[%clk 0:00:32]} 27. a4 {[%clk 0:01:14]}  Qb6 {[%clk 0:00:30]} 28. Qc3 {[%clk 0:01:10]}  Qd4 {[%clk 0:00:29]} 29. Qc7 {[%clk 0:01:07]}  Rd7 {[%clk 0:00:28]} 30. Qb8+ {[%clk 0:01:04]}  Kh7 {[%clk 0:00:28]} 31. a5 {[%clk 0:01:03]}  Nf4 {[%clk 0:00:29]} 32. a6 {[%clk 0:01:03]}  Nd3 {[%clk 0:00:28]} 33. g4 {[%clk 0:00:56]}  Nf4 {[%clk 0:00:24]} 34. Qb1+ {[%clk 0:00:49]}  g6 {[%clk 0:00:22]} 35. h4 {[%clk 0:00:44]}  Qe3 {[%clk 0:00:18]} 36. Rg3 {[%clk 0:00:40]}  Qe2 {[%clk 0:00:15]} 37. h5 {[%clk 0:00:39]}  Rd1+ {[%clk 0:00:15]} 38. Qxd1 {[%clk 0:00:32]}  Qxd1+ {[%clk 0:00:16]} 39. Kh2 {[%clk 0:00:32]}  Qe2+ {[%clk 0:00:16]} 40. Kg1 {[%clk 0:00:30]}  Qe1+ {[%clk 0:00:17]} 41. Kh2 {[%clk 0:00:30]}  Qf2+ {[%clk 0:00:17]} 42. Kh1 {[%clk 0:00:29]}  Qxg3 {[%clk 0:00:17]} 43. hxg6+ {[%clk 0:00:29]}  Kxg6 {[%clk 0:00:18]} 44. g5 {[%clk 0:00:29]}  Qg2# {[%clk 0:00:19]} 0-1


[Site "https://www.chess.com"]